Cogmind - Beta 12 @@@ ROGUE MODE // 2023.03.23 @ 14:23:19 Player: Mr Goldstein Result: Self-destructed Performance ------------- Evolutions (2) 1000 Regions Visited (5) 1000 Robots Destroyed (24) 120 Value Destroyed (465) 465 Prototype IDs (2) 40 Alien Tech Used (0) 0 Bonus (77) 77 TOTAL SCORE: 2702 Bonus ------- Follower Combat Kills 77 Cogmind --------- Core Integrity 550/550 Matter 300/300 Energy 150/150 System Corruption 0% Temperature Cool (1) Movement Flying (50) Location -8/Materials Parts ------- > --- POWER (1) -------- Light Angular Momentum Engine > --- PROPULSION (4) --- Flying Fortress v7 > --- UTILITY (4) ------ Medium Storage Unit Machine Analyzer Experimental Sensor Array Signal Interpreter > --- WEAPON (2) ------- Pulse Rifle Light Assault Rifle > --- INVENTORY (10) --- Ion Engine Light Treads Field Laser Improved Grenade Launcher Peak State ------------ > --- POWER ------------ Light Angular Momentum Engine > --- PROPULSION ------- Flying Fortress v7 > --- UTILITY ---------- Medium Storage Unit Machine Analyzer Experimental Sensor Array Signal Interpreter > --- WEAPON ----------- Pulse Rifle Light Assault Rifle > --- INVENTORY -------- Ion Engine Light Treads Field Laser Improved Grenade Launcher [Rating: 55] Favorites ----------- Power Light Angular Momentum Engine Engine Light Angular Momentum Engine Propulsion Light Treads Treads Light Treads Flight Unit Flying Fortress v7 Utility Medium Storage Unit Device Experimental Sensor Array Storage Medium Storage Unit Processor Signal Interpreter Weapon Light Assault Rifle Energy Gun Pulse Rifle Energy Cannon Beam Cannon Ballistic Gun Light Assault Rifle Build | -11 -10 -10 -10 -9 -8 ------- Run | Jun Mat Min Exi Min Mat Slots Evolved 4 | . . . . . 4 Power . | . . . . . . Propulsion 2 | . . . . . 2 Utility 2 | . . . . . 2 Weapon . | . . . . . . Parts Attached 21 | 4 6 6 2 . 3 Power 3 | 1 . 2 . . . Engine 3 | 1 . 2 . . . Core . | . . . . . . Reactor . | . . . . . . Propulsion 7 | 2 . 2 2 . 1 Treads 6 | 2 . 2 2 . . Leg . | . . . . . . Wheel . | . . . . . . Hover . | . . . . . . Flight 1 | . . . . . 1 Utility 5 | 1 2 . . . 2 Device 1 | . . . . . 1 Storage 2 | 1 1 . . . . Processor 2 | . 1 . . . 1 Hackware . | . . . . . . Protection . | . . . . . . Artifact . | . . . . . . Weapon 6 | . 4 2 . . . Energy Gun 3 | . 2 1 . . . Energy Cannon 1 | . 1 . . . . Ballistic Gun 2 | . 1 1 . . . Ballistic Cannon . | . . . . . . Launcher . | . . . . . . Special Weapon . | . . . . . . Impact Weapon . | . . . . . . Slashing Weapon . | . . . . . . Piercing Weapon . | . . . . . . Special Melee Weapon . | . . . . . . Unidentified Prototypes 2 | . . . . . 2 Parts Lost 3 | . 1 2 . . . Power 1 | . . 1 . . . Propulsion 1 | . . 1 . . . Utility . | . . . . . . Weapon 1 | . 1 . . . . Highest Loss Streak 1 | . 1 1 . . . To Critical Strikes . | . . . . . . Average Slot Usage (%) 95 | . 86 99 100 100 70 Engine 13 | . 14 13 14 14 9 Treads 26 | . 28 27 28 28 . Storage 13 | . 14 14 14 14 9 Processor 11 | . 1 14 14 14 16 Energy Gun 10 | . 12 6 14 14 9 Energy Cannon 4 | . 6 7 . . . Ballistic Gun 12 | . 9 14 14 14 9 Naked Turns . | . . . . . . Heaviest Build 24 | 10 19 23 23 23 24 Greatest Support 50 | 40 40 40 40 40 50 Greatest Overweight (x) 1 | . . 1 1 . . Average Overweight (x) . | . . . . . . Largest Inventory Capacity 10 | 8 10 10 10 10 10 Average Capacity 9 | 7 8 10 10 10 10 Most Carried 10 | 4 6 10 10 10 9 Average Carried 7 | 2 3 8 9 9 4 Final Capacity 10 | 8 10 10 10 10 10 Final Carried 10 | 4 5 10 10 10 4 Class Distribution -------------------- 92% | Mutant 4% | Scout 3% | Commander-Mutant Dominant Class ---------------- Mutant | -10/Materials Mutant | -10/Mines Mutant | -10/Exiles Mutant | -9/Mines Scout | -8/Materials Resources | -11 -10 -10 -10 -9 -8 ----------- Run | Jun Mat Min Exi Min Mat Matter Collected 442 | 232 57 91 3 21 38 Remotely . | . . . . . . Salvage Created 775 | . 290 325 16 56 88 Parts 39 | . 15 18 . 3 3 Haulers Intercepted 1 | . 1 . . . . Recyclers Shooed 2 | . 1 . . 1 . Parts Field Recycled . | . . . . . . Retrieved Matter . | . . . . . . Parts Self-Destructed . | . . . . . . Prevented . | . . . . . . Kills | -11 -10 -10 -10 -9 -8 ------- Run | Jun Mat Min Exi Min Mat Combat Hostiles Destroyed 18 | . 5 10 . 1 2 Melee 1 | . . 1 . . . Guns 10 | . 4 3 . 1 2 Cannons 6 | . . 6 . . . AOE 1 | . 1 . . . . Classes Destroyed 6 | . 4 1 . 1 . Hauler 1 | . 1 . . . . Recycler 4 | . 2 2 . . . Operator 1 | . 1 . . . . Swarmer 11 | . 5 6 . . . Grunt 6 | . . 4 . . 2 Duelist 1 | . . . . 1 . Best Kill Streak 5 | . 5 3 . 1 2 Combat Bots Only 5 | . 5 3 . 1 2 Max Kills in Single Turn 1 | . 1 1 . 1 1 Gunslinging . | . . . . . . Exploded 1 | . 1 . . . . Melee 1 | . . 1 . . . Uniques/NPCs Destroyed . | . . . . . . Combat | -11 -10 -10 -10 -9 -8 -------- Run | Jun Mat Min Exi Min Mat Damage Taken 795 | . 219 473 . . 103 Core 105 | . 29 76 . . . Absorbed by Shields . | . . . . . . Core Remaining (%) 79 | 100 . . . 58 . Volleys Fired 64 | . 20 31 3 2 8 Largest 2 | . 2 2 2 2 2 Hottest 83 | . 80 83 83 83 83 Shots Fired 124 | . 39 59 6 4 16 Gun 91 | . 32 33 6 4 16 Cannon 33 | . 7 26 . . . Launcher . | . . . . . . Special . | . . . . . . Kinetic 51 | . 7 31 3 2 8 Thermal 48 | . 7 28 3 2 8 Explosive . | . . . . . . Electromagnetic 25 | . 25 . . . . Robot Hit Streak 10 | . 4 10 5 4 8 Robot Miss Streak 3 | . 3 3 1 . 3 Penetration Max . | . . . . . . Secondary Targets 2 | . 1 . . . 1 Max Gunslinging Chain 1 | . 1 . . . 1 Shots Hit Robots 74 | . 19 38 5 1 11 Core Hits 33 | . 11 16 1 1 4 Critical Kills . | . . . . . . Critical Parts Destroyed . | . . . . . . Critical Strikes 2 | . . . . . 2 Burn 2 | . . . . . 2 Melee Attacks . | . . . . . . Impact . | . . . . . . Slashing . | . . . . . . Piercing . | . . . . . . Sneak Attacks . | . . . . . . Combat Hostiles . | . . . . . . Follow-up Attacks . | . . . . . . Damage Inflicted 1087 | . 347 504 74 21 141 Guns 566 | . 171 164 74 16 141 Cannons 384 | . 70 314 . . . Explosions 101 | . 101 . . . . Melee . | . . . . . . Ramming 36 | . 5 26 . 5 . Kinetic 247 | . 39 146 22 . 40 Thermal 672 | . 171 332 52 16 101 Explosive . | . . . . . . Electromagnetic 132 | . 132 . . . . Impact . | . . . . . . Slashing . | . . . . . . Piercing . | . . . . . . Highest Corruption . | . . . . . . Average Corruption . | . . . . . . Corruption Purged . | . . . . . . Corruption Blocked . | . . . . . . Overload Shots . | . . . . . . Overflow Damage . | . . . . . . Projectiles . | . . . . . . Explosions . | . . . . . . Melee . | . . . . . . Knockbacks . | . . . . . . Impact . | . . . . . . Kinetic . | . . . . . . Secondary . | . . . . . . Self-Inflicted Damage 6 | . 6 . . . . Shots 1 | . 1 . . . . Rammed 11 | 2 3 4 . 2 . Targets Rammed 14 | 2 3 7 . 2 . Kicked . | . . . . . . Crushed 3 | . . 3 . . . Highest Temperature 345 | . 138 338 102 46 345 Average Temperature 103 | . 52 117 51 27 177 Received Heat Transfer 324 | . . 261 . . 63 Effects 3 | . . 2 . . 1 Energy Bleed 2 | . . 1 . . 1 Interference 1 | . . 1 . . . Siege Activations . | . . . . . . Robots Corrupted . | . . . . . . Combat Hostiles . | . . . . . . Parts Fried . | . . . . . . Impact Corruptions . | . . . . . . Robots Melted . | . . . . . . Combat Hostiles . | . . . . . . Parts Melted 1 | . . . . . 1 Heat Transferred 1419 | . 198 703 111 37 370 Parts Sabotaged . | . . . . . . Parts Stolen . | . . . . . . Parts Stripped . | . . . . . . Power Chain Reactions 2 | . 2 . . . . Missiles Intercepted . | . . . . . . Alert | -11 -10 -10 -10 -9 -8 ------- Run | Jun Mat Min Exi Min Mat Peak Influence 219 | . 180 219 . 55 48 Initial 9 | . . 9 . . . Average 59 | . 73 68 . 37 19 Maximum Alert Level 1 | . . 1 . . . Low Security (%) 94 | 100 100 88 . 100 100 Level 1 5 | . . 11 . . . Level 2 . | . . . . . . Level 3 . | . . . . . . Level 4 . | . . . . . . Level 5 . | . . . . . . High Security . | . . . . . . Max Security . | . . . . . . Squads Dispatched . | . . . . . . Investigation . | . . . . . . Extermination . | . . . . . . Reinforcement . | . . . . . . Assault . | . . . . . . Garrison . | . . . . . . Intercept . | . . . . . . Searches Triggered . | . . . . . . Construction Impeded . | . . . . . . Haulers Reinforced . | . . . . . . Active Scanning Responses . | . . . . . . Cargo Convoy Interrupts . | . . . . . . Stealth | -11 -10 -10 -10 -9 -8 --------- Run | Jun Mat Min Exi Min Mat Distress Signals 1 | . . 1 . . . Communications Jammed . | . . . . . . Distress Signals . | . . . . . . Times Spotted 32 | . 12 12 . 2 6 Peak Tracking Total 6 | . 6 3 . 2 3 Tactical Retreats 4 | . 1 2 . 1 . Traps | -11 -10 -10 -10 -9 -8 ------- Run | Jun Mat Min Exi Min Mat Traps Triggered 1 | . . 1 . . . Indirectly . | . . . . . . Trap Hack Attempts . | . . . . . . Triggered . | . . . . . . Disarmed . | . . . . . . Reprogrammed . | . . . . . . Reused . | . . . . . . Traps Extracted . | . . . . . . Installed . | . . . . . . Triggered . | . . . . . . Machines | -11 -10 -10 -10 -9 -8 ---------- Run | Jun Mat Min Exi Min Mat Machines Disabled 1 | . 1 . . . . Max in Single Turn 1 | . 1 . . . . Machines Repaired . | . . . . . . Machines Sabotaged . | . . . . . . Overloaded Fab Kills . | . . . . . . Hacking | -11 -10 -10 -10 -9 -8 --------- Run | Jun Mat Min Exi Min Mat Machines Accessed 6 | . 3 1 1 . 1 Terminals 4 | . 3 . . . 1 Fabricators . | . . . . . . Repair Stations . | . . . . . . Recycling Units . | . . . . . . Scanalyzers . | . . . . . . Garrison Access . | . . . . . . Total Hacks 15 | . 10 1 1 . 3 Successful 7 | . 3 1 1 . 2 Failed 8 | . 7 . . . 1 Catastrophic . | . . . . . . Database Lockouts . | . . . . . . Manual 7 | . 2 . 2 . 3 Terminals 13 | . 10 . . . 3 Fabricators . | . . . . . . Repair Stations . | . . . . . . Recycling Units . | . . . . . . Scanalyzers . | . . . . . . Garrison Access . | . . . . . . Terminal Hacks 7 | . 3 1 1 . 2 Record 1 | . . . 1 . . Open Door 1 | . . 1 . . . Terminal Index 1 | . . . . . 1 Locate Traps 1 | . 1 . . . . Dispatch Records 1 | . 1 . . . . Hauler Manifests 1 | . 1 . . . . Registered Components 1 | . . . . . 1 Fabricator Hacks . | . . . . . . Repair Station Hacks . | . . . . . . Recycling Unit Hacks . | . . . . . . Scanalyzer . | . . . . . . Garrison Access Hacks . | . . . . . . Unauthorized Hacks . | . . . . . . Terminals . | . . . . . . Fabricators . | . . . . . . Repair Stations . | . . . . . . Recycling Units . | . . . . . . Scanalyzers . | . . . . . . Garrison Access . | . . . . . . Data Cores Recovered 1 | . 1 . . . . Used 1 | . 1 . . . . Hacking Detections 3 | . 3 . . . . Full Trace Events . | . . . . . . Feedback Events . | . . . . . . Feedback Blocked . | . . . . . . Robot Schematics Acquired . | . . . . . . Robots Built . | . . . . . . Authchips . | . . . . . . Time . | . . . . . . Total Robot Build Rating . | . . . . . . Part Schematics Acquired . | . . . . . . Parts Built . | . . . . . . Authchips . | . . . . . . Time . | . . . . . . Total Part Build Rating . | . . . . . . Parts Repaired . | . . . . . . Time . | . . . . . . Parts Recycled . | . . . . . . Recycled Matter . | . . . . . . Retrieved Matter . | . . . . . . Retrieved Components . | . . . . . . Parts Scanalyzed . | . . . . . . Part Schematics Acquired . | . . . . . . Parts Damaged . | . . . . . . Bothacking | -11 -10 -10 -10 -9 -8 ------------ Run | Jun Mat Min Exi Min Mat Used RIF Installer . | . . . . . . Robots Hacked . | . . . . . . Non-combat . | . . . . . . Combat . | . . . . . . Robot Hacks Applied . | . . . . . . Relay Couplers Released . | . . . . . . Fabnet Peak Effective % . | . . . . . . Robots Rewired 3 | . . . 3 . . Allies Hacked . | . . . . . . Hacks Repelled . | . . . . . . Allies | -11 -10 -10 -10 -9 -8 -------- Run | Jun Mat Min Exi Min Mat Total Allies 6 | . . . 3 3 . Largest Group 5 | . . . 3 5 . Highest-Rated Group 56 | . . . 37 56 . Highest-Rated Ally 21 | . . . 21 21 . Total Orders . | . . . . . . Ally Attacks 28 | . . . . 28 . Total Damage 315 | . . . . 315 . Kills 3 | . . . . 3 . Allies Corrupted 1 | . . . . 1 . Allies Melted . | . . . . . . Intel | -11 -10 -10 -10 -9 -8 ------- Run | Jun Mat Min Exi Min Mat Robot Analysis Total . | . . . . . . Derelict Logs Recovered 2 | . . 1 . 1 . Drone Launches . | . . . . . . Drone Recoveries . | . . . . . . Exploration | -11 -10 -10 -10 -9 -8 ------------- Run | Jun Mat Min Exi Min Mat Turns Passed 3049 | 85 653 1047 720 419 125 Spaces Moved 1791 | 56 362 580 429 239 125 Core 17 | 17 . . . . . Treads 1649 | 39 362 580 429 239 . Legs . | . . . . . . Wheels . | . . . . . . Hover . | . . . . . . Flight 125 | . . . . . 125 Fastest Speed 50 | 50 160 160 160 160 50 Average Speed 151 | 126 160 160 160 160 50 Slowest Speed 240 | 160 160 240 240 160 50 Overloaded Moves . | . . . . . . Propulsion Burnouts . | . . . . . . Robots Hopped . | . . . . . . Cave-ins Triggered . | . . . . . . Exploration Rate (%) 43 | 3 51 90 70 41 8 Regions Visited 5 Branch Regions 3 Pre-discovered Areas 2 | . . . 1 1 . Known Exits Taken 4 | . 1 1 1 1 . Unknown Exits Taken 1 | 1 . . . . . Scrap Searched 1 | . . 1 . . . Spaces Dug . | . . . . . . Terrain Destroyed 7 | . 7 . . . . Melee . | . . . . . . Projectile . | . . . . . . AOE 7 | . 7 . . . . Terrain Rammed . | . . . . . . Walls Destroyed . | . . . . . . Machines Disabled . | . . . . . . Actions | -11 -10 -10 -10 -9 -8 --------- Run | Jun Mat Min Exi Min Mat Total 2011 | 69 397 641 459 271 174 Wait 68 | . . 5 . 27 36 Move 1786 | 55 361 579 428 238 125 Hop . | . . . . . . Pick Up 26 | 8 6 10 1 1 . Fast Attach 4 | . . 2 2 . . Attach 14 | 4 5 2 . . 3 Detach . | . . . . . . Swap 3 | . 1 2 . . . Drop 13 | . 1 3 6 1 2 Fire 64 | . 20 31 3 2 8 Melee . | . . . . . . Ram . | . . . . . . Kick . | . . . . . . Crush 14 | 2 3 7 . 2 . Escape Stasis . | . . . . . . Rewire 19 | . . . 19 . . Trap . | . . . . . . Miscellaneous . | . . . . . . Route ------- -11/Junkyard -10/Materials (discovered 2 exits: *Mat / *Min) -10/Mines (discovered 3 exits: *Mat x2 / *Exi) -10/Exiles (discovered 2 exits: *Min x2) -9/Mines -8/Materials History --------- Turn | Location | Event 5 | -11/Junkyard | Discovered new exit (range 14) 86 | -11/Junkyard | Entered Materials 312 | -10/Materials | Build established: Mutant 343 | -10/Materials | Discovered new exit (range 9) 577 | -10/Materials | Discovered new exit (range 15) 738 | -10/Materials | Identified exit to Mines 739 | -10/Materials | Entered Mines 769 | -10/Mines | Met a Derelict bent on vengeance 1027 | -10/Mines | Discovered new exit (range 8) 1040 | -10/Mines | Identified exit to Materials 1295 | -10/Mines | Met a Derelict who couldn't figure out how to use a Trap Extractor 1613 | -10/Mines | Discovered exit to Materials (range 12) 1778 | -10/Mines | Deemed a non-threat by the Exiles lab entrance 1778 | -10/Mines | Discovered new exit (range 5) 1783 | -10/Mines | Identified exit to Exiles 1786 | -10/Mines | Entered Exiles 1786 | -10/Exiles | Found Exiles lab destroyed 1787 | -10/Exiles | Identified exit to Mines 1974 | -10/Exiles | Learned location of Zion (-7) 2294 | -10/Exiles | Opened EX-Vault 2302 | -10/Exiles | Found Prototype Flight Unit 2506 | -10/Exiles | Entered Mines 2506 | -9/Mines | Accompanied by 3 allies 2507 | -9/Mines | Learned location of Storage (-9) 2577 | -9/Mines | Discovered new exit (range 6) 2580 | -9/Mines | Received a Rocket Launcher from a helpful Derelict 2588 | -9/Mines | Identified exit to Materials 2644 | -9/Mines | Found a damaged Exp. Sensor Array with a note attached 2648 | -9/Mines | Found Prototype Device 2692 | -9/Mines | Assisted by bots powering up and referring to "LRC-V3" 2737 | -9/Mines | Learned Materials non-interactive machine intel 2925 | -9/Mines | Entered Materials 2925 | -8/Materials | Evolved 4 slots: Propulsion x2, Utility x2 2925 | -8/Materials | Identified Exp. Sensor Array 2926 | -8/Materials | Loaded intel: 45 non-interactive machine locations 2928 | -8/Materials | Identified Flying Fortress v7 3050 | -8/Materials | Self-destructed Last Messages --------------- 02953_ Connecting with Terminal... >>Inventory(Components) Retrieving component inventory records... Found 1 registered component stockpile: 9W2LVP62FS: Adv. Weight Redist. System Downloaded coordinate data. >>Index(Terminals) Found 12 terminals. Downloaded coordinate data. 02959_ >> Machine Analyzer network decryption results: 02959_ Garrison Access x1 02959_ Scanalyzer x1 03001_ G-47 Trooper suffers critical hit (Burn). 03001_ G-47 Trooper destroyed. 03001_ Switching to secondary target: G-47 Trooper. 03004_ G-47 Trooper suffers critical hit (Burn). 03013_ Aluminum Leg melted. 03013_ G-47 Trooper destroyed. 03021_ Overheating: Energy bleed (-27). 03038_ Acquired 38 matter. Map ----- +----------------------------------------------------+ | ????????????????????????????????????? | | ????????????????????????????????????? | | ????????????????????????????????????? | | ????????????????????????????????????? | | ????????????????????????????????????? | | ????????????????????????????????????? | | ???????????????????? ?????????????? | | ???????????????????# ?????????????? | | ???????????????????# ?????????????? | | ???????????????????? ]?????????????? | | ???????????????????? ????????????? | | ????????????????????# ????????????? | | ????????????????????# ????????????? | | ????????????????????#g g????????????? | | ????????????????????+ ????????????? | | ????????????????????# g ????????????? | | ????????????????????# ????????????? | | ????????????????????# #####???????? | | ????????#######?????# #???????? | | ??????# #???# == #???????? | | ??????# #???# #???????? | | ??????# """ """ #???####r####???????? | | ??????# """ """ #????# #????????? | | ??????# """ """ #????# #????????? | | ??????# #????# | * #????????? | | ??????# #????# @ #????????? | | ??????# ]#????# """#????????? | | ?##########+########## """#????????? | | ?# # + """#????????? | | ?# #= ########## #????????? | | ?# ]=+%[#????????# """#????????? | | ?# #x%#??????? # """#????????? | | ?# "T" # #??????? + """#????????? | | ?# # #?????? # #????????? | | ?######### #?????? ########????????? | | ?????????# #?????? #???????????????? | | ????"""??# #????? #???????????????? | | ????"""??#x #????? #???????????????? | | ????"""??# ###### #???????????????? | | ?????????# #??"""??????????? | | ?????????+ #??"""??????????? | | ?????????# """ #??"""??????????? | | ????????## """ = #??"""??????????? | | ????????# """ #???????????????? | | ????????# #??"""??????????? | | ????????# ! #??"""????""""??? | | ????????# #??"""????""""??? | | ????????##/####### #??"""????""""??? | | ???????? ??????? #???????????????? | | ??????/ !??""??? #????????""""??? | +----------------------------------------------------+ Best States ------------- Heat Dissipation 31 Energy Generation 18 Energy Capacity 250 Matter Stores 300 Matter Capacity 300 Sight Range 16 Robot Scan Range 20 Terrain Scan Density 10 Evasion (%) 60 Recoil Reduction 2 Item Schematics ----------------- None Robot Schematics ------------------ None Fabricated ------------ Nothing Alien Tech Used ----------------- None Achievements -------------- A New Friend Challenges ------------ None Game ------ Seed MassTerrabombAutocannon Manual? 0 Play Time 00:21:13 Cumulative 28.9 hours Start 2023.03.23 @ 13:21:18 End 2023.03.23 @ 14:23:19 Sessions 3 Manual Loads 0 Difficulty Rogue Special Mode None Game No. 38 Rogue 38 Adventurer 0 Explorer 0 Win Type - Total 0 Types 0/0/0/0/0/0/0/0/0 Lore% 29 Gallery% 31 Achievement% 29 Wizard Run 0 Options --------- ASCII 0 Keyboard 0 Movement Arrows Keybinds 0 Fullscreen 1 Font 12/Smallcaps Map View 83x54 Tactical HUD 1 Map Filters NONE Filters NONE Steam 1 RUN: 4a7bdbdd-f4fb-4443-804b-afb7418321cc